Cogmind - Beta 13 @@@ ROGUE MODE // 2024.07.12 @ 02:19:41 Player: ThatBishHoly Result: Destroyed by Explosive Trap Performance ------------- Evolutions (0) 0 Regions Visited (1) 200 Robots Destroyed (9) 45 Value Destroyed (215) 215 Prototype IDs (2) 40 Alien Tech Used (0) 0 Bonus (0) 0 TOTAL SCORE: 500 Bonus ------- None Cogmind --------- Core Integrity 0/250 Matter 280/300 Energy 60/100 System Corruption 2% Temperature Cool (2) Movement Walking (120) Location -10/Materials Parts ------- > --- POWER (1) -------- (None) > --- PROPULSION (2) --- Aluminum Leg Aluminum Leg > --- UTILITY (2) ------ Small Storage Unit Tractor Beam > --- WEAPON (2) ------- Medium Laser Medium Laser > --- INVENTORY (8) ---- Aluminum Leg Aluminum Leg ECM Suite Light Armor Plating Medium Laser Medium Laser Peak State ------------ > --- POWER ------------ Ion Engine > --- PROPULSION ------- Wheel Compact Wheel > --- UTILITY ---------- Small Storage Unit > --- WEAPON ----------- Assault Rifle Light Assault Rifle > --- INVENTORY -------- (None) [Rating: 6] Favorites ----------- Power Ion Engine Engine Ion Engine Propulsion Aluminum Leg Leg Aluminum Leg Wheel Wheel Utility Small Storage Unit Device Tractor Beam Storage Small Storage Unit Protection Light Armor Plating Weapon Medium Laser Energy Gun Medium Laser Ballistic Gun Light Assault Rifle Build | -11 -10 ------- Run | Yrd Mat Slots Evolved . | . . Power . | . . Propulsion . | . . Utility . | . . Weapon . | . . Parts Attached 14 | 6 8 Power 2 | 1 1 Engine 2 | 1 1 Core . | . . Reactor . | . . Propulsion 5 | 2 3 Treads . | . . Leg 3 | . 3 Wheel 2 | 2 . Hover . | . . Flight . | . . Utility 3 | 1 2 Device 1 | . 1 Storage 1 | 1 . Processor . | . . Hackware . | . . Protection 1 | . 1 Artifact . | . . Weapon 4 | 2 2 Energy Gun 2 | . 2 Energy Cannon . | . . Ballistic Gun 2 | 2 . Ballistic Cannon . | . . Launcher . | . . Special Weapon . | . . Impact Weapon . | . . Slashing Weapon . | . . Piercing Weapon . | . . Special Melee Weapon . | . . Unidentified Prototypes . | . . Parts Lost 6 | . 6 Power 2 | . 2 Propulsion 2 | . 2 Utility . | . . Weapon 2 | . 2 Highest Loss Streak 4 | . 4 To Critical Strikes . | . . Average Slot Usage (%) 72 | . 72 Engine 8 | . 8 Leg 17 | . 17 Wheel 8 | . 8 Storage 14 | . 14 Energy Gun 15 | . 15 Ballistic Gun 7 | . 7 Naked Turns . | . . Heaviest Build 14 | 13 14 Greatest Support 26 | 26 26 Greatest Overweight (x) . | . . Average Overweight (x) . | . . Largest Inventory Capacity 8 | 8 8 Average Capacity 7 | 6 8 Most Carried 7 | 5 7 Average Carried 2 | 1 2 Final Capacity 8 | 8 8 Final Carried 6 | . 6 Class Distribution -------------------- 100% | Mutant Dominant Class ---------------- Mutant | -10/Materials Resources | -11 -10 ----------- Run | Yrd Mat Matter Collected 386 | 183 203 Remotely . | . . Salvage Created 264 | . 264 Parts 19 | . 19 Haulers Intercepted . | . . Recyclers Shooed . | . . Parts Field Recycled . | . . Retrieved Matter . | . . Parts Self-Destructed . | . . Prevented . | . . Kills | -11 -10 ------- Run | Yrd Mat Combat Hostiles Destroyed 7 | . 7 Guns 7 | . 7 Classes Destroyed 4 | . 4 Tunneler 1 | . 1 Operator 1 | . 1 Swarmer 3 | . 3 Grunt 4 | . 4 Best Kill Streak 3 | . 3 Combat Bots Only 3 | . 3 Max Kills in Single Turn 1 | . 1 Gunslinging . | . . Exploded . | . . Melee . | . . Uniques/NPCs Destroyed . | . . Combat | -11 -10 -------- Run | Yrd Mat Hostile Shots Fired 117 | . 117 Missed 41 | . 41 Damage Taken 804 | . 804 Core 254 | . 254 Absorbed by Shields . | . . Core Remaining (%) 100 | 100 . Volleys Fired 49 | . 49 Largest 2 | . 2 Hottest 100 | . 100 Shots Fired 90 | . 90 Gun 90 | . 90 Cannon . | . . Launcher . | . . Special . | . . Kinetic 52 | . 52 Thermal 38 | . 38 Explosive . | . . Electromagnetic . | . . Robot Hit Streak 7 | . 7 Robot Miss Streak 5 | . 5 Penetration Max . | . . Secondary Targets . | . . Shots Hit Robots 46 | . 46 Core Hits 19 | . 19 Critical Kills . | . . Critical Parts Destroyed . | . . Critical Strikes . | . . Melee Attacks . | . . Impact . | . . Slashing . | . . Piercing . | . . Sneak Attacks . | . . Combat Hostiles . | . . Follow-up Attacks . | . . Damage Inflicted 595 | . 595 Guns 595 | . 595 Cannons . | . . Explosions . | . . Melee . | . . Ramming . | . . Kinetic 355 | . 355 Thermal 240 | . 240 Explosive . | . . Electromagnetic . | . . Impact . | . . Slashing . | . . Piercing . | . . Highest Corruption 2 | . 2 Average Corruption 2 | . 2 Corruption Purged . | . . Corruption Blocked . | . . Effects 2 | . 2 Heat Flow Errors 1 | . 1 Energy Discharges 1 | . 1 Overload Shots . | . . Overflow Damage . | . . Projectiles . | . . Explosions . | . . Melee . | . . Knockbacks . | . . Impact . | . . Kinetic . | . . Secondary . | . . Self-Inflicted Damage . | . . Shots . | . . Rammed . | . . Targets Rammed . | . . Kicked . | . . Crushed . | . . Highest Temperature 223 | . 223 Average Temperature 52 | . 52 Received Heat Transfer 330 | . 330 Siege Activations . | . . Robots Corrupted . | . . Combat Hostiles . | . . Parts Fried . | . . Impact Corruptions . | . . Robots Melted . | . . Combat Hostiles . | . . Parts Melted . | . . Heat Transferred 703 | . 703 Parts Sabotaged . | . . Parts Stolen . | . . Parts Stripped . | . . Power Chain Reactions . | . . Alert | -11 -10 ------- Run | Yrd Mat Peak Influence 116 | . 116 Initial . | . . Average 40 | . 42 Maximum Alert Level . | . . Low Security (%) 100 | 100 100 Level 1 . | . . Level 2 . | . . Level 3 . | . . Level 4 . | . . Level 5 . | . . High Security . | . . Max Security . | . . Squads Dispatched 1 | . 1 Investigation 1 | . 1 Extermination . | . . Reinforcement . | . . Assault . | . . Garrison . | . . Intercept . | . . Searches Triggered . | . . Construction Impeded . | . . Haulers Reinforced . | . . Active Scanning Responses . | . . Cargo Convoy Interrupts . | . . Stealth | -11 -10 --------- Run | Yrd Mat Distress Signals . | . . Communications Jammed . | . . Distress Signals . | . . Times Spotted 15 | . 15 Peak Tracking Total 4 | . 4 Tactical Retreats . | . . Traps | -11 -10 ------- Run | Yrd Mat Traps Triggered 3 | . 3 Indirectly . | . . Trap Hack Attempts . | . . Triggered . | . . Disarmed . | . . Reprogrammed . | . . Reused . | . . Traps Extracted . | . . Installed . | . . Triggered . | . . Machines | -11 -10 ---------- Run | Yrd Mat Machines Disabled . | . . Max in Single Turn . | . . Machines Repaired . | . . Machines Dismantled . | . . Machines Sabotaged . | . . Overloaded Fab Kills . | . . Hacking | -11 -10 --------- Run | Yrd Mat Machines Accessed 3 | . 3 Terminals 3 | . 3 Fabricators . | . . Repair Stations . | . . Recycling Units . | . . Scanalyzers . | . . Garrison Access . | . . Total Hacks 9 | . 9 Successful 4 | . 4 Failed 5 | . 5 Catastrophic 1 | . 1 Database Lockouts . | . . Manual . | . . Terminals 9 | . 9 Fabricators . | . . Repair Stations . | . . Recycling Units . | . . Scanalyzers . | . . Garrison Access . | . . Terminal Hacks 4 | . 4 Prototype ID Bank 1 | . 1 Locate Traps 1 | . 1 Zone Layout 2 | . 2 Fabricator Hacks . | . . Repair Station Hacks . | . . Recycling Unit Hacks . | . . Scanalyzer . | . . Garrison Access Hacks . | . . Unauthorized Hacks . | . . Terminals . | . . Fabricators . | . . Repair Stations . | . . Recycling Units . | . . Scanalyzers . | . . Garrison Access . | . . Data Cores Recovered 1 | . 1 Used . | . . Hacking Detections 3 | . 3 Full Trace Events 1 | . 1 Feedback Events . | . . Feedback Blocked . | . . Robot Schematics Acquired . | . . Robots Built . | . . Authchips . | . . Time . | . . Total Robot Build Rating . | . . Part Schematics Acquired . | . . Parts Built . | . . Authchips . | . . Time . | . . Total Part Build Rating . | . . Parts Repaired . | . . Time . | . . Parts Recycled . | . . Recycled Matter . | . . Retrieved Matter . | . . Retrieved Components . | . . Parts Scanalyzed . | . . Part Schematics Acquired . | . . Parts Damaged . | . . Bothacking | -11 -10 ------------ Run | Yrd Mat Used RIF Installer . | . . Robots Hacked . | . . Non-combat . | . . Combat . | . . Robot Hacks Applied . | . . Relay Couplers Released . | . . Fabnet Peak Effective % . | . . Robots Rewired . | . . Allies Hacked . | . . Hacks Repelled . | . . Allies | -11 -10 -------- Run | Yrd Mat Total Allies . | . . Largest Group . | . . Highest-Rated Group . | . . Highest-Rated Ally . | . . Total Orders . | . . Ally Attacks . | . . Total Damage . | . . Kills . | . . Allies Corrupted . | . . Allies Melted . | . . Intel | -11 -10 ------- Run | Yrd Mat Robot Analysis Total . | . . Derelict Logs Recovered . | . . Drone Launches . | . . Drone Recoveries . | . . Exploration | -11 -10 ------------- Run | Yrd Mat Turns Passed 950 | 44 906 Spaces Moved 726 | 44 682 Core 17 | 17 . Treads . | . . Legs 451 | . 451 Wheels 258 | 27 231 Hover . | . . Flight . | . . Fastest Speed 50 | 50 80 Average Speed 107 | 74 109 Slowest Speed 120 | 90 120 Overloaded Moves . | . . Propulsion Burnouts . | . . Robots Hopped . | . . Cave-ins Triggered . | . . Exploration Rate (%) 44 | 3 86 Regions Visited 1 Branch Regions . Pre-discovered Areas . | . . Known Exits Taken . | . . Unknown Exits Taken 1 | 1 . Scrap Searched . | . . Spaces Dug . | . . Terrain Destroyed . | . . Melee . | . . Projectile . | . . AOE . | . . Terrain Rammed . | . . Walls Destroyed . | . . Machines Disabled . | . . Actions | -11 -10 --------- Run | Yrd Mat Total 814 | 54 760 Wait 2 | . 2 Move 725 | 43 682 Hop . | . . Pick Up 20 | 5 15 Fast Attach 1 | 1 . Attach 12 | 5 7 Detach 1 | . 1 Swap 1 | . 1 Drop 3 | . 3 Fire 49 | . 49 Melee . | . . Ram . | . . Kick . | . . Crush . | . . Escape Stasis . | . . Rewire . | . . Trap . | . . Miscellaneous . | . . Route ------- -11/Scrapyard -10/Materials (discovered 4 exits: [*Mat x2] / [*Min x2]) History --------- Turn | Location | Event 22 | -11/Scrapyard | Discovered new exit (range 16) 45 | -11/Scrapyard | Entered Materials 125 | -10/Materials | Discovered new exit (range 16) 302 | -10/Materials | Build established: Mutant 323 | -10/Materials | Discovered new exit (range 16) 324 | -10/Materials | Core integrity fell below 50% 335 | -10/Materials | Lost 4 parts (1p1n2w) 385 | -10/Materials | Core integrity fell below 20% 614 | -10/Materials | Discovered new exit (range 16) 835 | -10/Materials | Discovered new exit (range 7) 951 | -10/Materials | Destroyed by Explosive Trap Last Messages --------------- 00712_ Decrypted 2 local trap positions from data. 00713_ K-01 Serf collects debris. 00768_ Ion Engine destroyed. 00772_ G-47 Trooper destroyed. 00777_ Acquired Aluminum Leg. 00778_ Dropped Aluminum Leg. 00778_ K-01 Serf cleans the Recycling Unit. 00800_ G-34 Mercenary destroyed. 00806_ Acquired Aluminum Leg. 00808_ Dropped Aluminum Leg. 00809_ Acquired 32 matter. 00835_ EXIT=FOUND 00844_ System corrupted: Heat flow error (+210). 00871_ Triggered Alarm Trap. 00871_ An alarm sounds. 00871_ ALERT: Alarm triggered, dispatching investigation squad. 00895_ Acquired Tractor Beam. 00951_ System corrupted: Energy discharge (-36). 00951_ Triggered Explosive Trap. 00951_ An explosion rips through the floor. Map ----- +----------------------------------------------------+ | # #############???? # ###### ! #? | | # #??????????????###+## #????# / #? | | # = #??????????????# #????########? | | + /#??????????????# #????????????? | | # #??????????????# #????????????? | | # #??????????????# ###+#####?????????? | | # #??????????????# # =#?????????? | | # #??????????????+ / "T" #?????????? | | # #??????????????# # #?????????? | | # #??????????????+ #########?????????? | | # #???????????#####+#####??????????????? | | # #???????????# #??????????????? | | # #???????????# #??????????????? | | ####????????# #??????????????? | | ## #????????# #??????????????? | | ?# #????????# #??????????????? | | ?# #????????# #??????????????? | | ?# #????????#! #??????????????? | | ?# #????????# #??????????????? | | ?# #????????#+#############??????????? | | ?# #????????# #?# ] #??????????? | | ?# #????????# #?# #??????????? | | ## #????????# #?# ] !! #??????????? | | ###????### ### ! #??????????? | | T#????# ##/###########???????? | | ""#????# k @ #???????? | | ###????# ^ #???????? | | #??????# ^ +???????? | | #??????# ##+###+### #???????? | | #??????####### #?? #???????? | | ## #????????????# #???? ??????? | | ?# #????????????# #????? ????? | | ?# #???#######??# #??????? ???? | | ?## #???# #??#########????????????? | | ??# #???# #???????????????????????? | | ??# #???# """ #???????????????????????? | | ??# #???# """ #???????????????????????? | | ??# ##### """ #???????????????????????? | | ??# # """ #???????????????????????? | | ??# + """ #???????????????????????? | | ### # #???????????????????????? | | # # !#???????????????????????? | | # # #???????????????????????? | | # # #???????????????????????? | | + # "T" #???????????????????????? | | # #######???????????????????????? | | ]# ## ###?????????????????????????????? | | # # #??????????????????????????????? | | ##### #??????????????????????????????? | | ###???## ##??????????????????????????????? | +----------------------------------------------------+ Best States ------------- Heat Dissipation 25 Energy Generation 10 Energy Capacity 250 Matter Stores 300 Matter Capacity 300 Sight Range 16 Terrain Scan Density 10 Evasion (%) 55 Item Schematics ----------------- None Robot Schematics ------------------ None Fabricated ------------ Nothing Alien Tech Used ----------------- None Achievements -------------- None Challenges ------------ None Game ------ Seed PointMachineFlamer Manual? 0 Play Time 00:07:54 Cumulative 57.9 hours Start 2024.07.12 @ 02:11:44 End 2024.07.12 @ 02:19:41 Sessions 1 Manual Loads 0 Difficulty Rogue Special Mode None Game No. 157 Rogue 157 Adventurer 0 Explorer 0 Win Type - Total 0 Types 0/0/0/0/0/0/0/0/0 Lore% 22 Gallery% 41 Achievement% 26 Wizard Run 0 Options --------- Layout 0 ASCII 0 Keyboard 0 Movement Arrows Keybinds 0 Fullscreen 1 Font 12/Smallcaps Map View 38x28 Zoom Use 82% Tactical HUD 1 Map Filters NONE Filters NONE Steam SD RUN: 3b72ecce-e61f-49c2-9ac9-6159986299b7